bitfinex/quotes_ETHUSD_20240719
["timestamp","ask_amount","ask_price","bid_price","bid_amount"]
[1721423773826,2.519,3517.1,3516.7,0.03261356]
[1721423778622,2.519,3517.1,3516.8,2.84346]
[1721423778930,2.519,3517.1,3516.9,0.03247156]
[1721423779492,2.519,3517.1,3516.7,2.84352]
[1721423779802,2.519,3517.1,3517.0,0.03242983]
[1721423780349,2.519,3517.1,3516.7,2.84352]
[1721423780489,2.519,3517.1,3517.0,0.03242983]
[1721423780689,2.519,3517.1,3516.7,2.84352]
[1721423780938,2.519,3517.1,3516.8,0.0325133]
[1721423782005,5.36232,3517.1,3516.8,0.0325133]
[1721423782408,2.84333,3517.0,3516.3,2.84383]
[1721423782719,2.84333,3517.0,3516.4,3.655963]
[1721423783022,2.84333,3517.0,3516.4,3.68864325]
[1721423783226,8.20563,3517.1,3516.4,3.68863325]
[1721423783408,5.36231,3517.1,3516.4,3.68863325]
[1721423784014,2.84333,3517.0,3516.4,3.68863325]
[1721423785359,2.84333,3517.0,3516.4,2.87648025]
[1721423785562,2.84343,3516.9,3516.4,0.03268025]
[1721423785862,2.84343,3516.9,3516.3,2.84389]
[1721423786065,2.84343,3516.9,3516.5,0.03261358]
[1721423786365,2.84343,3516.9,3516.6,0.03257184]
[1721423786650,2.84343,3516.9,3516.3,2.84389]
[1721423786857,2.84343,3516.9,3516.7,0.0325301]
[1721423787050,2.84343,3516.9,3516.3,2.84389]
[1721423787250,2.84343,3516.9,3516.8,0.03248836]
[1721423787455,2.84343,3516.9,3516.3,2.84389]
[1721423787758,2.84356,3516.8,3516.1,5.27784]
[1721423787982,2.84356,3516.8,3516.4,0.03265532]
[1721423788264,2.84356,3516.8,3516.1,5.27784]
[1721423788426,2.84356,3516.8,3516.5,0.03261358]
[1721423788627,2.84359,3516.7,3516.1,5.27784]
[1721423789143,2.84359,3516.7,3516.2,0.03273881]
[1721423789674,2.84313,3517.3,3516.2,0.84820369]
[1721423789832,2.84322,3517.2,3516.6,2.8436]
[1721423790157,2.84322,3517.2,3516.7,0.03256943]
[1721423790361,2.84322,3517.2,3516.8,2.4751]
[1721423790546,2.84322,3517.2,3516.8,2.5076277]
[1721423792463,2.96480144,3517.4,3517.0,2.8433]
[1721423792669,0.44580144,3517.4,3517.0,3.37839277]
[1721423792885,2.84256,3518.0,3517.4,2.84296]
[1721423793183,2.84265,3517.9,3517.5,0.03221739]
[1721423793346,2.84265,3517.9,3517.3,5.31818]
[1721423793546,2.84265,3517.9,3517.6,0.03217567]
[1721423793868,2.84265,3517.9,3517.3,5.31818]
[1721423794056,2.84265,3517.9,3517.7,0.03208983]
[1721423794226,2.84265,3517.9,3517.3,5.31818]
[1721423794432,2.84265,3517.9,3517.8,0.03204812]
[1721423794727,2.84252,3518.0,3517.8,0.03204812]
[1721423794930,2.84252,3518.0,3517.4,2.84295]
[1721423795154,2.84252,3518.0,3517.9,0.03200641]
[1721423795444,2.84252,3518.0,3517.4,2.84295]
[1721423795649,2.84252,3518.0,3517.9,0.03200641]
[1721423795869,2.84252,3518.0,3517.4,2.84295]
[1721423796385,2.84252,3518.0,3517.5,0.03217326]
[1721423797570,2.84252,3518.0,3517.3,2.4751]
[1721423797775,5.36139,3518.2,3517.6,2.87496154]
[1721423797958,5.36139,3518.2,3517.6,2.84283]
[1721423798162,5.36139,3518.2,3517.7,0.03202173]
[1721423798394,2.84239,3518.2,3517.7,0.03202173]
[1721423798565,5.36121,3518.4,3517.7,0.03202173]
[1721423798748,5.36121,3518.4,3517.8,2.4751]
[1721423798944,5.36121,3518.4,3517.8,5.34972002]
[1721423800882,8.20348,3518.4,3517.8,5.34972002]
[1721423801585,5.36121,3518.4,3517.8,5.34972002]
[1721423801790,8.20348,3518.4,3517.8,5.34972002]
[1721423802298,5.36121,3518.4,3517.8,5.34972002]
[1721423803061,8.20348,3518.4,3517.8,5.34972002]
[1721423803669,2.84228,3518.3,3517.8,5.34972002]
[1721423804966,2.84228,3518.3,3517.8,2.50708002]
[1721423805792,5.68463,3518.3,3517.8,2.50708002]
[1721423805993,2.84228,3518.3,3517.8,2.50708002]
[1721423808662,2.84199,3518.7,3517.8,3.12023024]
[1721423809486,2.84204,3518.6,3517.8,3.12023024]
[1721423809705,2.84204,3518.6,3517.9,2.84254]
[1721423809909,2.519,3518.4,3518.0,2.8425]
[1721423810063,2.519,3518.4,3518.0,2.87437167]
[1721423811192,2.84204,3518.6,3518.0,2.87437167]
[1721423811395,5.36104,3518.6,3518.0,2.87437167]
[1721423812275,5.36104,3518.6,3518.0,3.75488786]
[1721423813626,2.84204,3518.6,3518.0,3.75488786]
[1721423815677,2.84204,3518.6,3518.1,2.84242]
[1721423816074,5.84174,3519.0,3518.4,2.84219]
[1721423816318,5.68352,3519.0,3518.4,3.65068371]
[1721423816479,2.84174,3519.0,3518.5,0.03075196]
[1721423816681,2.519,3519.1,3518.7,2.84194]
[1721423816906,2.519,3519.1,3518.5,2.87280196]
[1721423817223,2.519,3519.1,3518.5,2.84205]
[1721423817431,2.519,3519.1,3518.6,0.03071027]
[1721423818238,2.519,3519.1,3518.6,2.87274027]
[1721423818720,2.469,3519.1,3518.6,2.87274027]
[1721423819024,2.84145,3519.4,3518.8,5.10762]
[1721423819328,2.84145,3519.4,3518.8,3.14436493]
[1721423819540,2.8415,3519.3,3518.8,3.14436493]
[1721423819708,2.8415,3519.3,3518.9,0.03058521]
[1721423819899,2.519,3519.2,3518.9,0.03058521]
[1721423821230,2.8415,3519.3,3518.9,0.03058521]
[1721423821533,2.84165,3519.1,3518.9,0.03058521]
[1721423821682,2.84169,3519.1,3518.2,2.2658]
[1721423821887,2.519,3518.8,3518.4,2.84218]
[1721423822086,2.84169,3519.1,3518.5,0.795021]
[1721423822307,2.519,3519.4,3518.6,2.2658]
[1721423822526,2.84156,3519.2,3518.6,5.10779]
[1721423822737,5.36044,3519.4,3518.7,2.84195]
[1721423823721,2.519,3519.4,3518.9,2.84176]
[1721423823945,2.519,3519.4,3519.0,0.793431]
[1721423824093,2.84134,3519.5,3519.0,0.793431]
[1721423824837,2.8416,3519.2,3518.8,2.2506]
[1721423825202,5.36042,3519.4,3518.4,2.2506]
[1721423825203,2.84192,3518.8,3518.4,2.2506]
[1721423825630,2.84174,3519.0,3518.4,5.09279]
[1721423826617,2.84179,3518.9,3518.4,2.2506]
[1721423826796,2.84179,3518.9,3518.5,0.50929]
[1721423828350,2.84172,3519.0,3518.5,0.50929]
[1721423829942,2.84172,3519.0,3518.5,3.35139]
[1721423830242,2.84172,3519.0,3518.5,0.50929]
[1721423830643,2.84194,3518.8,3518.5,0.50929]
[1721423830810,2.84194,3518.8,3518.4,2.2506]
[1721423831015,5.68353,3519.0,3518.6,0.03053866]
[1721423831222,2.8418,3518.9,3518.4,2.2506]
[1721423831533,2.84143,3519.4,3518.8,5.20232]
[1721423831833,2.84147,3519.3,3518.9,0.0304136]
[1721423832135,2.84147,3519.3,3518.9,0.83788296]
[1721423833003,2.84155,3519.2,3518.9,0.83788296]
[1721423833205,2.84145,3519.4,3518.9,0.83788296]
[1721423833813,2.84134,3519.5,3518.9,0.83788296]
[1721423833814,2.84149,3519.3,3518.9,0.83788296]
[1721423836243,2.84171,3519.0,3518.9,0.0304136]
[1721423836453,2.84171,3519.0,3518.5,2.3605]
[1721423836766,5.68347,3519.0,3518.9,0.03039923]
[1721423836936,2.84171,3519.0,3518.5,2.3605]
[1721423837141,2.84171,3519.0,3518.5,2.880783]
[1721423837440,2.84171,3519.0,3518.6,0.03052429]
[1721423837625,2.84192,3518.8,3518.6,0.03052429]
[1721423838027,5.36095,3518.7,3518.6,0.03052429]
[1721423838226,2.84227,3518.4,3518.1,7.39]
[1721423839510,2.84236,3518.2,3518.1,7.39]
[1721423839756,2.84227,3518.4,3518.1,0.97505]
[1721423839914,2.84227,3518.4,3518.0,2.3605]
[1721423840563,2.84227,3518.4,3518.0,2.3489]
[1721423840765,2.84227,3518.4,3518.0,2.3223]
[1721423841773,5.68455,3518.4,3518.0,2.3223]
[1721423842329,2.84227,3518.4,3518.0,2.3223]
[1721423842533,2.84227,3518.4,3517.3,7.39]
[1721423842534,2.84241,3518.2,3517.3,7.39]
[1721423842835,2.8423,3518.3,3517.7,2.84271]
[1721423843888,2.84237,3518.2,3517.8,2.4264]
[1721423844689,2.84226,3518.4,3517.8,2.4264]
[1721423844837,2.84226,3518.4,3517.9,2.8426]
[1721423845338,2.84226,3518.4,3517.8,2.4264]
[1721423845538,2.84226,3518.4,3517.8,2.953309]
[1721423846046,2.84226,3518.4,3517.8,5.795979]
[1721423846392,2.84205,3518.6,3518.1,5.26883]
[1721423846675,2.84205,3518.6,3518.1,2.4264]
[1721423847464,2.84205,3518.6,3518.1,5.26883]
[1721423847852,2.84205,3518.6,3518.1,2.4264]
[1721423848246,2.84205,3518.6,3518.1,5.89949801]
[1721423848647,2.84205,3518.6,3518.2,0.0307783]
[1721423848957,2.84189,3518.8,3518.2,2.8731383]
[1721423849162,2.84189,3518.8,3518.3,2.4619]
[1721423849488,2.519,3519.1,3518.5,2.84206]
[1721423849797,2.84141,3519.4,3518.7,2.84195]
[1721423849798,2.84155,3519.2,3518.7,2.84195]
[1721423850280,2.84141,3519.4,3518.8,0.03052814]
[1721423850485,2.84149,3519.3,3518.8,0.03052814]
[1721423850782,2.84149,3519.3,3518.7,2.84195]
[1721423850960,2.84149,3519.3,3518.9,0.03048645]
[1721423851157,2.84149,3519.3,3518.7,2.84195]
[1721423851486,2.84149,3519.3,3518.8,0.03052814]
[1721423851848,2.8414,3519.4,3518.9,2.4619]
[1721423852070,2.8414,3519.4,3518.9,2.49238645]
[1721423853380,2.84149,3519.3,3518.9,0.03048645]
[1721423853581,2.84192,3518.8,3518.5,2.4619]
[1721423853851,5.36092,3518.8,3518.5,2.4619]
[1721423854774,2.84201,3518.7,3518.5,2.4619]
[1721423856900,2.84164,3519.1,3518.5,2.4619]
[1721423857407,2.84153,3519.3,3518.6,2.84202]
[1721423857555,5.68308,3519.3,3518.6,2.84202]
[1721423858082,5.68308,3519.3,3518.7,2.84194]
[1721423858083,2.84153,3519.3,3518.7,2.84194]
[1721423858460,5.36031,3519.5,3518.8,2.84186]
[1721423859485,2.84142,3519.4,3518.8,2.84186]
[1721423860107,2.519,3519.5,3518.8,2.84186]
[1721423860401,2.519,3519.5,3519.0,2.8417]
[1721423860755,2.519,3519.5,3518.8,2.84186]
[1721423860756,5.36033,3519.5,3518.8,2.84181]
[1721423861160,5.36033,3519.5,3518.9,2.84179]
[1721423861810,0.0565092,3519.6,3519.3,2.84146]
[1721423863706,0.0565092,3519.6,3519.4,0.03011227]
[1721423864301,0.0565092,3519.6,3519.5,2.4949]
[1721423864720,0.0565092,3519.6,3519.5,2.5249706]
[1721423867014,0.0565092,3519.6,3519.5,5.3662806]
[1721423867205,0.0565092,3519.6,3519.5,6.18705466]
[1721423868129,0.0565092,3519.6,3519.5,3.34574466]
[1721423868332,0.0565092,3519.6,3519.5,2.5249706]
[1721423869310,0.0565092,3519.6,3519.5,5.3662806]
[1721423873426,0.0565092,3519.6,3519.5,2.5249706]
[1721423873631,0.0565092,3519.6,3519.5,0.0300706]
[1721423873832,0.0565092,3519.6,3519.4,2.84133]
[1721423874139,0.0565092,3519.6,3519.5,0.0299796]
[1721423874456,0.0565092,3519.6,3518.8,9.7772]
[1721423874654,2.84139,3519.4,3518.9,0.03022966]
[1721423878163,0.0565092,3519.6,3519.3,2.84141]
[1721423878366,0.0565092,3519.6,3519.4,2.3872]
[1721423878688,0.0565092,3519.6,3519.4,5.25860414]
[1721423879652,0.0565092,3519.6,3519.5,2.84131]
[1721423879855,0.0565092,3519.6,3519.5,6.52259663]
[1721423882385,0.0565092,3519.6,3519.5,9.36390663]
[1721423882583,0.0565092,3519.6,3519.5,11.75110663]
[1721423884450,0.0565092,3519.6,3519.5,8.90979663]
[1721423887415,0.0565092,3519.6,3519.5,11.75110663]
[1721423888377,0.0565092,3519.6,3519.5,8.90979663]
[1721423888675,0.04857645,3519.6,3519.5,8.90979663]
[1721423889895,0.04857645,3519.6,3519.5,6.06848663]
[1721423890904,0.04857645,3519.6,3519.5,3.22717663]
[1721423891090,0.04857645,3519.6,3519.5,0.02998822]
[1721423891277,0.04857645,3519.6,3519.2,2.8415]
[1721423891472,0.04857645,3519.6,3519.5,0.02993172]
[1721423891667,0.04857645,3519.6,3519.2,2.8415]
[1721423891867,0.04857645,3519.6,3519.5,0.02993172]
[1721423892069,0.04857645,3519.6,3519.2,2.8415]
[1721423892364,0.04857645,3519.6,3519.5,0.02993172]
[1721423892579,0.04857645,3519.6,3519.2,2.8415]
[1721423892779,0.04857645,3519.6,3519.5,0.02993172]
[1721423892980,2.84132,3519.5,3518.8,10.23185]
[1721423893180,2.84132,3519.5,3518.9,1.552786]
[1721423893382,2.84141,3519.4,3518.9,1.552786]
[1721423893581,2.84141,3519.4,3519.0,0.0301401]
[1721423894007,2.84141,3519.4,3518.9,1.552786]
[1721423894208,2.88985645,3519.6,3519.1,0.03009842]
[1721423894503,2.88985645,3519.6,3519.2,0.03005674]
[1721423894703,2.88985645,3519.6,3518.9,4.394576]
[1721423894910,2.88985645,3519.6,3519.3,0.03001506]
[1721423895077,2.88985645,3519.6,3518.9,4.394576]
[1721423895276,2.88985645,3519.6,3519.4,0.02997339]
[1721423895472,2.88985645,3519.6,3518.9,4.394576]
[1721423895673,2.88985645,3519.6,3519.5,0.02993172]
[1721423895912,2.88985645,3519.6,3518.9,4.394576]
[1721423896100,2.88985645,3519.6,3519.5,0.02993172]
[1721423896406,2.88985645,3519.6,3518.9,4.394576]
[1721423896912,2.88985645,3519.6,3519.0,0.0301401]
[1721423897869,0.04857645,3519.6,3519.0,2.8718401]
[1721423900073,0.04857645,3519.6,3519.5,2.84131]
[1721423900336,0.04857645,3519.6,3519.5,5.11731]
[1721423900626,0.04857645,3519.6,3519.5,5.14730108]
[1721423901718,0.04857645,3519.6,3519.5,7.98861108]
[1721423902489,0.1507416,3520.8,3520.7,2.84034]
[1721423902686,0.1507416,3520.8,3520.7,0.568073]
[1721423902909,0.1507416,3520.8,3520.7,2.869768]
[1721423903294,0.1507416,3520.8,3520.7,5.710108]
[1721423905535,0.1507416,3520.8,3520.7,2.869768]
[1721423906237,0.1507416,3520.8,3520.7,0.029428]
[1721423906911,0.1507416,3520.8,3520.5,2.84047]
[1721423907234,0.1507416,3520.8,3520.6,0.02946964]
[1721423907933,0.1507416,3520.8,3520.7,0.029428]
[1721423908250,0.1507416,3520.8,3520.1,2.84082]
[1721423908450,0.1507416,3520.8,3520.7,0.029428]
[1721423908750,0.1507416,3520.8,3520.3,2.84059]
[1721423908912,0.1507416,3520.8,3520.7,0.029428]
[1721423909109,0.1507416,3520.8,3520.3,2.84059]
[1721423909347,0.1507416,3520.8,3520.7,0.029428]
[1721423909552,0.1507416,3520.8,3520.3,2.84059]
[1721423909715,0.1507416,3520.8,3520.7,0.029428]
[1721423909913,0.1507416,3520.8,3520.3,2.84059]
[1721423910226,2.9910216,3520.8,3520.1,2.84082]
[1721423910548,2.9910216,3520.8,3520.4,0.02955294]
[1721423910845,2.9910216,3520.8,3520.0,7.39]
[1721423910846,0.1507416,3520.8,3520.5,0.02951129]
[1721423911050,0.1507416,3520.8,3520.1,2.84081]
[1721423911247,2.9910116,3520.8,3520.6,0.02946964]
[1721423911415,2.9910116,3520.8,3520.2,2.84074]
[1721423911617,0.1507416,3520.8,3520.3,0.02959459]
[1721423912746,2.9910016,3520.8,3520.3,0.02959459]
[1721423913125,0.1507416,3520.8,3520.3,2.84065]
[1721423913325,0.1507416,3520.8,3520.4,0.029439]
[1721423914116,0.1507416,3520.8,3520.4,5.156399]
[1721423914446,0.1507416,3520.8,3520.6,2.84034]
[1721423914826,0.1507416,3520.8,3520.7,0.02931407]
[1721423916024,0.1507416,3520.8,3520.7,2.86965407]
[1721423916256,0.1507416,3520.8,3520.7,6.50963348]
[1721423916816,0.1507416,3520.8,3520.7,3.66929348]
[1721423926635,0.1507416,3520.8,3520.7,0.02931407]
[1721423926990,0.1507416,3520.8,3520.4,2.84053]
[1721423927165,0.1507416,3520.8,3520.7,0.02931407]
[1721423927618,0.1507416,3520.8,3520.5,2.8405]
[1721423928024,0.1507416,3520.8,3520.6,0.02935571]
[1721423928855,2.9910116,3520.8,3520.1,5.20098]
[1721423929061,2.9910116,3520.8,3520.7,0.0292997]
[1721423929444,2.9910116,3520.8,3520.1,5.20098]
[1721423929763,0.07101109,3520.7,3520.2,0.02950794]
[1721423929963,2.84059,3520.4,3520.2,0.02950794]
[1721423930266,2.84059,3520.4,3519.7,2.3774]
[1721423930561,2.84059,3520.4,3520.3,0.02810309]
[1721423930777,2.84104,3519.9,3519.2,2.3774]
[1721423930977,2.8412,3519.7,3518.9,2.84179]
[1721423931183,2.84139,3519.4,3519.3,0.03076769]
[1721423931479,2.84151,3519.3,3518.5,10.23211]
[1721423932463,2.84156,3519.2,3518.5,7.39]
[1721423933588,2.84163,3519.1,3518.5,7.39]
[1721423934579,2.84172,3519.0,3518.5,7.39]
[1721423935745,2.519,3519.3,3518.6,2.84203]
[1721423935987,2.84148,3519.3,3518.6,2.84203]
[1721423936156,2.84148,3519.3,3518.5,1.023227]
[1721423936350,2.84148,3519.3,3518.4,2.84218]
[1721423936546,2.84156,3519.2,3518.4,2.84218]
[1721423937099,2.84133,3519.5,3518.3,2.84227]
[1721423937249,0.55,3519.4,3518.3,2.84227]
[1721423937894,2.84152,3519.3,3518.3,2.84227]
[1721423938199,2.84152,3519.3,3518.5,2.84209]
[1721423938552,0.55,3519.4,3518.6,0.03277791]
[1721423938553,2.84184,3518.9,3518.6,0.03277791]
[1721423938901,2.84184,3518.9,3518.1,2.84236]
[1721423939106,2.84188,3518.8,3518.7,0.0327258]
[1721423939397,2.84188,3518.8,3517.9,13.07512]
[1721423939597,2.84188,3518.8,3518.7,0.0327258]
[1721423939779,2.84225,3518.4,3517.5,5.2203]
[1721423939964,0.07106278,3518.3,3517.6,2.84284]
[1721423940179,0.07106278,3518.2,3517.6,0.03078698]
[1721423940360,2.519,3517.8,3517.6,0.03078698]
[1721423940699,2.84244,3518.1,3517.7,0.02854321]
[1721423940880,2.84244,3518.1,3517.1,5.22063]
[1721423941052,2.84252,3518.0,3517.8,0.028528]
[1721423941377,2.84252,3518.0,3517.3,2.84305]
[1721423941561,2.84252,3518.0,3517.9,0.02848636]
[1721423942108,2.84252,3518.0,3517.3,2.84305]
[1721423942283,2.84252,3518.0,3517.9,0.02848636]
[1721423942487,2.84252,3518.0,3517.3,2.84305]
[1721423942653,2.84252,3518.0,3517.9,0.02851585]
[1721423942848,2.84252,3518.0,3517.3,2.84305]
[1721423943054,2.84252,3518.0,3517.4,0.02874338]
[1721423943280,2.91359064,3518.0,3517.4,0.02874338]
[1721423943505,0.07107064,3518.0,3517.2,2.84315]
[1721423943797,2.84261,3517.9,3517.5,0.02870173]
[1721423944005,2.84261,3517.9,3517.2,2.84315]
[1721423944155,2.84261,3517.9,3517.6,0.02876782]
[1721423944353,2.84261,3517.9,3517.2,2.84315]
[1721423944572,2.84273,3517.8,3517.7,0.02872618]
[1721423944768,2.84254,3518.0,3517.1,5.22063]
[1721423945004,3.39261,3517.9,3517.7,0.02872618]
[1721423945168,3.39261,3517.9,3517.2,2.84317]
[1721423945367,3.39261,3517.9,3517.8,0.02868149]
[1721423945906,2.8427,3517.8,3517.1,5.22064]
[1721423947091,0.55,3517.9,3517.1,2.3774]
[1721423947272,2.84261,3517.9,3517.2,2.84316]
[1721423948093,2.84261,3517.9,3517.1,2.3774]
[1721423948291,2.84272,3517.8,3517.1,2.3774]
[1721423949220,2.84272,3517.8,3517.1,5.22064]
[1721423949436,3.39258,3518.0,3517.1,6.766045]
[1721423949579,2.84262,3517.9,3517.1,3.922805]
[1721423949905,0.55,3517.8,3517.2,2.84316]
[1721423950403,0.55,3517.8,3517.1,3.922805]
[1721423950404,3.39269,3517.8,3517.1,3.922805]
[1721423950590,3.39269,3517.8,3517.1,6.766045]
[1721423950796,3.39269,3517.8,3517.2,2.84316]
[1721423950970,3.39269,3517.8,3517.2,0.65239513]
[1721423953474,0.55,3517.8,3517.3,0.02893243]
[1721423953676,2.84301,3517.4,3516.7,2.84352]
[1721423953876,2.84301,3517.4,3516.4,12.50815]
[1721423953877,2.84319,3517.2,3516.5,2.8437]
[1721423954082,2.84319,3517.2,3516.6,2.84364]
[1721423954306,2.84319,3517.2,3516.6,3.639814]
[1721423955711,0.55,3517.3,3516.7,2.84356]
[1721423956315,2.84325,3517.1,3516.6,0.796174]
[1721423956477,2.84325,3517.1,3516.4,3.0]
[1721423956677,2.84325,3517.1,3516.4,5.84375]
[1721423957077,2.84325,3517.1,3516.4,2.84375]
[1721423958020,2.84325,3517.1,3516.0,9.6644]
[1721423958021,2.84313,3517.3,3516.7,2.84353]
[1721423959201,2.84299,3517.5,3516.7,2.84353]
[1721423959432,0.55,3517.4,3516.7,2.84353]
[1721423959592,3.39303,3517.4,3516.5,5.68738]
[1721423959925,2.84314,3517.3,3516.6,2.84364]
[1721423960292,0.55,3517.4,3516.7,2.84356]
[1721423960891,0.55,3517.4,3516.8,2.84343]
[1721423961191,3.39302,3517.4,3516.8,2.84343]
[1721423961392,0.55,3517.4,3516.9,2.8434]
[1721423961628,0.55,3517.5,3516.9,2.8434]
[1721423962897,3.46408453,3517.5,3516.7,2.84351]
[1721423963114,2.84302,3517.4,3516.8,2.84348]
[1721423968404,2.91410449,3517.4,3516.6,2.84361]
[1721423968622,0.55,3517.3,3516.9,0.02921905]
[1721423968838,3.39313,3517.3,3516.6,2.84361]
[1721423969009,3.39313,3517.3,3517.0,0.02917434]
[1721423969208,3.39313,3517.3,3516.6,2.84361]
[1721423969439,3.39313,3517.3,3517.1,0.02912963]
[1721423969639,3.39313,3517.3,3516.6,5.68719]
[1721423969799,3.39313,3517.3,3517.2,0.02908493]
[1721423970434,3.39313,3517.3,3516.7,2.84355]
[1721423970633,3.39313,3517.3,3517.2,0.02908493]
[1721423970846,3.39313,3517.3,3516.7,2.84355]
[1721423971332,3.39313,3517.3,3516.8,0.02930141]
[1721423975015,2.84341,3516.9,3516.8,0.02930141]
[1721423975336,2.519,3517.2,3516.8,0.02930141]
[1721423975513,3.39315,3517.3,3516.6,2.8436]
[1721423975514,0.55,3517.1,3516.9,0.02926585]
[1721423975842,0.55,3517.1,3516.7,2.84356]
[1721423976012,0.55,3517.2,3516.7,2.84356]
[1721423976224,0.55,3517.2,3516.8,0.02934517]
[1721423976401,2.2635,3517.9,3517.3,2.84308]
[1721423976607,2.8426,3517.9,3517.3,2.84308]
[1721423976842,2.8426,3517.9,3517.4,0.02908608]
[1721423977151,2.8426,3517.9,3517.5,0.0290251]
[1721423977354,2.8426,3517.9,3517.2,2.84316]
[1721423977552,2.8426,3517.9,3517.3,0.0291145]
[1721423978039,0.55,3517.8,3517.3,0.0291145]
[1721423978541,0.55,3517.8,3517.3,2.84308]
[1721423978706,0.55,3518.0,3517.4,0.0290698]
[1721423978909,3.39252,3518.0,3517.4,0.0290698]
[1721423980044,3.39252,3518.0,3517.4,2.8720598]
[1721423980245,3.0,3518.4,3517.9,2.8426]
[1721423980549,2.2635,3519.0,3518.2,2.84228]
[1721423980844,2.84168,3519.1,3518.4,2.84218]
[1721423981346,2.84156,3519.2,3518.5,0.02855282]
[1721423981508,2.84165,3519.1,3518.5,0.02855282]
[1721423981937,0.55,3519.0,3518.5,0.02855282]
[1721423982320,3.39171,3519.0,3518.5,0.02855282]
[1721423982640,3.39171,3519.0,3518.2,2.84235]
[1721423982943,2.84181,3518.9,3518.2,2.84235]
[1721423983241,0.55,3518.8,3518.3,0.02864217]
[1721423983635,0.55,3518.8,3518.2,2.84235]
[1721423983946,0.55,3518.8,3518.3,0.02864217]
[1721423984241,0.55,3518.8,3518.2,2.84235]
[1721423984611,0.55,3518.8,3518.3,0.02864217]
[1721423985243,0.55,3518.8,3518.2,2.84235]
[1721423985747,0.55,3518.8,3518.3,0.02864217]
[1721423986044,0.55,3518.8,3518.2,2.84235]
[1721423986412,0.5,3518.8,3518.3,0.0307293]
[1721423986730,0.5,3518.8,3518.2,2.84235]
[1721423986941,0.5,3518.8,3518.3,0.0307293]
[1721423987112,2.519,3519.2,3518.4,2.84219]
[1721423987113,2.84172,3519.0,3518.4,2.84219]
[1721423987315,2.519,3519.2,3518.5,2.84211]
[1721423987316,5.3606,3519.2,3518.5,2.84211]
[1721423987529,5.3606,3519.2,3518.5,2.87274308]
[1721423988324,2.84165,3519.1,3518.5,0.03063308]
[1721423988528,0.55,3519.0,3518.5,0.03063308]
[1721423988843,0.55,3519.0,3518.5,2.87272308]
[1721423990540,0.55,3519.1,3518.5,2.87272308]
[1721423990729,3.39165,3519.1,3518.5,2.87272308]
[1721423993839,0.55,3519.1,3518.5,2.87272308]
[1721423998338,3.39163,3519.1,3518.5,2.87272308]
[1721423999437,0.55,3519.1,3518.6,2.84203]
[1721423999844,0.55,3519.1,3518.7,0.0330804]
[1721424001586,3.39164,3519.1,3518.7,0.0330804]
[1721424001757,3.39164,3519.1,3518.3,2.84224]
[1721424001931,0.55,3519.1,3518.7,2.3618]
[1721424002129,1.048,3518.8,3518.7,2.3618]
[1721424002476,0.55,3519.1,3518.7,2.3618]
[1721424006570,3.39164,3519.1,3518.7,2.3618]
[1721424006770,3.39164,3519.1,3518.4,2.84216]
[1721424006771,3.39164,3519.1,3518.4,5.32226]
[1721424006973,1.048,3518.6,3518.5,2.84212]
[1721424009951,0.55,3519.1,3518.6,2.84199]
[1721424010168,1.048,3518.7,3518.6,2.84199]
[1721424013667,1.048,3518.7,3518.6,2.87513201]
[1721424023818,0.55,3519.2,3518.8,2.84185]
[1721424024027,0.55,3519.3,3518.9,0.03298568]
[1721424024231,1.048,3519.0,3518.9,0.03298568]
[1721424024748,1.598,3519.0,3518.9,0.03298568]
[1721424025085,1.598,3519.0,3518.7,2.84195]
[1721424025287,1.048,3518.8,3518.7,2.84195]
[1721424027924,1.048,3518.8,3518.6,2.84199]
[1721424028706,1.048,3518.8,3518.7,0.03308277]
[1721424030937,1.048,3518.8,3518.7,2.87503277]
[1721424031736,1.048,3518.8,3518.7,2.90411302]
[1721424035967,0.55,3519.0,3518.7,2.90411302]
[1721424036115,2.84156,3519.2,3518.7,0.06216302]
[1721424036116,1.048,3518.8,3518.7,0.06216302]
[1721424044027,1.048,3518.8,3518.7,2.90411302]
[1721424045042,1.048,3518.8,3518.7,0.06216302]
[1721424045242,1.048,3518.8,3518.5,2.84208]
[1721424045443,1.048,3518.6,3518.5,2.84208]
[1721424046541,0.55,3519.1,3518.6,2.84199]
[1721424046729,3.39156,3519.2,3518.6,2.84199]
[1721424047074,1.048,3518.7,3518.6,2.84199]
[1721424053634,1.048,3518.7,3518.4,5.32223]
[1721424054655,1.048,3518.7,3518.5,2.8421]
[1721424058740,1.048,3518.7,3518.6,0.06005556]
[1721424059540,1.048,3518.7,3518.6,1.04795929]
[1721424059935,1.048,3518.7,3518.6,0.06005556]
[1721424060430,2.84166,3519.1,3518.6,3.92519437]
[1721424060635,0.55,3519.0,3518.6,2.33975556]
[1721424062771,1.048,3518.7,3518.6,2.33975556]
[1721424066088,0.55,3519.0,3518.6,2.33975556]
[1721424066089,0.2845,3520.5,3519.1,2.339]
[1721424066249,2.96190527,3522.2,3520.0,2.84083]
[1721424066452,2.96190527,3522.2,3519.9,0.59339604]
[1721424066453,2.08416248,3522.7,3522.0,1.048]
[1721424066666,2.3426,3522.7,3522.1,0.05856992]
[1721424066894,2.18435557,3522.6,3521.5,2.83966]
[1721424067097,2.83913,3522.3,3521.3,2.83986]
[1721424067377,0.52367345,3522.6,3521.2,2.83993]
[1721424067578,0.52367345,3522.6,3521.5,2.83963]
[1721424067579,2.83893,3522.5,3521.5,2.83963]
[1721424067875,1.048,3522.1,3521.6,2.89612037]
[1721424068490,1.048,3522.1,3521.7,2.83952]
[1721424068977,1.048,3522.1,3521.8,0.05643228]
[1721424069337,0.45269556,3522.6,3522.1,2.83921]
[1721424069537,1.048,3522.4,3522.1,2.83921]
[1721424069778,1.048,3522.4,3522.2,0.05626178]
[1721424070991,1.048,3522.3,3522.2,0.05626178]